fUST/lending_fUST_20240518
["ID","MTS","AMOUNT","RATE_DAILY","PERIOD"]
[327392105,1716040253160,-502.91493688,0.00016712,2]
[327392107,1716040253169,-500.0,0.00016712,2]
[327392109,1716040253179,-500.0,0.00016712,2]
[327392111,1716040253187,-507.2567136,0.00016712,2]
[327392113,1716040253197,-501.88330692,0.00016712,2]
[327392114,1716040253206,-503.16445002,0.00016712,2]
[327392117,1716040253215,-500.0,0.00016712,2]
[327392119,1716040253224,-500.0,0.00016712,2]
[327392121,1716040253234,-500.0,0.00016712,2]
[327392123,1716040253243,-500.0,0.00016712,2]
[327392124,1716040253252,-503.10624548,0.00016712,2]
[327392127,1716040253261,-501.25552783,0.00016712,2]
[327392129,1716040253270,-500.0,0.00016712,2]
[327392130,1716040253279,-500.0,0.00016712,2]
[327392133,1716040253289,-500.0,0.00016712,2]
[327392135,1716040253298,-500.0,0.00016712,2]
[327392136,1716040253307,-500.0,0.00016712,2]
[327392138,1716040253316,-500.0,0.00016712,2]
[327392140,1716040253325,-500.0,0.00016712,2]
[327392150,1716040253335,-500.0,0.00016712,2]
[327392153,1716040253420,-500.0,0.00016712,2]
[327392155,1716040253430,-500.0,0.00016712,2]
[327392157,1716040253439,-151.0,0.00016712,2]
[327392159,1716040253448,-500.0,0.00016712,2]
[327392161,1716040253457,-500.80132024,0.00016712,2]
[327392163,1716040253467,-151.0,0.00016712,2]
[327392165,1716040253477,-500.0,0.00016712,2]
[327392167,1716040253486,-349.36928426,0.00016712,2]
[327392169,1716040253496,-501.24219271,0.00016712,2]
[327392171,1716040253505,-500.0,0.00016712,2]
[327392173,1716040253515,-295.7298977,0.00016712,2]
[327392175,1716040253524,-500.0,0.00016712,2]
[327392177,1716040253533,-500.0,0.00016712,2]
[327392179,1716040253542,-500.0,0.00016712,2]
[327392181,1716040253552,-500.0,0.00016712,2]
[327392183,1716040253561,-500.0,0.00016712,2]
[327392185,1716040253570,-151.0,0.00016712,2]
[327392187,1716040253579,-477.54804614,0.00016712,2]
[327392189,1716040253589,-500.0,0.00016712,2]
[327392191,1716040253599,-500.0,0.00016712,2]
[327392193,1716040253609,-200.054453,0.00016712,2]
[327392195,1716040253618,-200.054453,0.00016712,2]
[327392197,1716040253627,-500.0,0.00016712,2]
[327392199,1716040253637,-500.0,0.00016712,2]
[327392201,1716040253647,-500.0,0.00016712,2]
[327392203,1716040253656,-500.0,0.00016712,2]
[327392205,1716040253665,-151.0,0.00016712,2]
[327392207,1716040253674,-500.0,0.00016712,2]
[327392209,1716040253683,-451.944429,0.00016712,2]
[327392211,1716040253693,-500.0,0.00016712,2]
[327392213,1716040253702,-500.0,0.00016712,2]
[327392215,1716040253711,-451.944429,0.00016712,2]
[327392217,1716040253720,-191.775829,0.00016712,2]
[327392219,1716040253730,-500.0,0.00016712,2]
[327392221,1716040253740,-523.2571519,0.00016712,2]
[327392224,1716040253749,-191.775829,0.00016712,2]
[327392226,1716040253758,-500.0,0.00016712,2]
[327392227,1716040253767,-500.0,0.00016712,2]
[327392229,1716040253777,-171.69,0.00016712,2]
[327392231,1716040253786,-500.0,0.00016712,2]
[327392233,1716040253796,-500.0,0.00016712,2]
[327392235,1716040253806,-500.0,0.00016712,2]
[327392237,1716040253815,-500.0,0.00016712,2]
[327392240,1716040253825,-500.0,0.00016712,2]
[327392241,1716040253834,-500.0,0.00016712,2]
[327392244,1716040253844,-500.0,0.00016712,2]
[327392246,1716040253853,-500.0,0.00016712,2]
[327392248,1716040253865,-500.0,0.00016712,2]
[327392250,1716040253874,-596.65,0.00016712,2]
[327392252,1716040253883,-151.0,0.00016712,2]
[327392254,1716040253893,-219.68782429,0.00016712,2]
[327392255,1716040253902,-500.0,0.00016712,2]
[327392257,1716040253911,-500.0,0.00016712,2]
[327392260,1716040253921,-500.0,0.00016712,2]
[327392262,1716040253932,-500.0,0.00016712,2]
[327392263,1716040253943,-500.0,0.00016712,2]
[327392266,1716040253952,-500.0,0.00016712,2]
[327392268,1716040253962,-500.0,0.00016712,2]
[327392270,1716040253971,-500.0,0.00016712,2]
[327392271,1716040253981,-508.96475328,0.00016712,2]
[327392273,1716040253990,-500.0,0.00016712,2]
[327392276,1716040254000,-500.90485719,0.00016712,2]
[327392277,1716040254009,-500.0,0.00016712,2]
[327392279,1716040254018,-357.36638848,0.00016712,2]
[327392281,1716040254027,-500.0,0.00016712,2]
[327392284,1716040254037,-1000.0,0.00016712,2]
[327392286,1716040254046,-151.0,0.00016712,2]
[327392288,1716040254055,-916.07,0.00016712,2]
[327392289,1716040254064,-500.0,0.00016712,2]
[327392291,1716040254073,-500.0,0.00016712,2]
[327392293,1716040254083,-500.0,0.00016712,2]
[327392295,1716040254092,-501.31245709,0.00016712,2]
[327392298,1716040254101,-280.79903579,0.00016712,2]
[327392300,1716040254110,-500.0,0.00016712,2]
[327392302,1716040254120,-255.28997206,0.00016712,2]
[327392304,1716040254129,-500.0,0.00016712,2]
[327392306,1716040254138,-500.0,0.00016712,2]
[327392308,1716040254147,-500.0,0.00016712,2]
[327392310,1716040254157,-500.0,0.00016712,2]
[327392311,1716040254166,-151.0,0.00016712,2]
[327392314,1716040254175,-500.0,0.00016712,2]
[327392316,1716040254185,-500.0,0.00016712,2]
[327392317,1716040254194,-500.0,0.00016712,2]
[327392320,1716040254203,-500.0,0.00016712,2]
[327392322,1716040254213,-500.0,0.00016712,2]
[327392323,1716040254222,-500.0,0.00016712,2]
[327392326,1716040254232,-500.0,0.00016712,2]
[327392328,1716040254241,-500.0,0.00016712,2]
[327392330,1716040254251,-500.0,0.00016712,2]
[327392332,1716040254260,-158.38044988,0.00016712,2]
[327392334,1716040254270,-500.0,0.00016712,2]
[327392336,1716040254279,-500.0,0.00016712,2]
[327392338,1716040254288,-361.61461553,0.00016712,2]
[327392340,1716040254297,-500.0,0.00016712,2]
[327392342,1716040254307,-500.0,0.00016712,2]
[327392344,1716040254316,-500.0,0.00016712,2]
[327392346,1716040254325,-500.0,0.00016712,2]
[327392347,1716040254334,-647.2,0.00016712,2]
[327392349,1716040254343,-500.0,0.00016712,2]
[327392351,1716040254353,-500.0,0.00016712,2]
[327392353,1716040254362,-500.0,0.00016712,2]
[327392355,1716040254371,-500.0,0.00016712,2]
[327392357,1716040254381,-151.0,0.00016712,2]
[327392359,1716040254390,-502.67880849,0.00016712,2]
[327392361,1716040254400,-501.98240884,0.00016712,2]
[327392363,1716040254409,-500.0,0.00016712,2]
[327392365,1716040254418,-663.17,0.00016712,2]
[327392367,1716040254427,-500.0,0.00016712,2]
[327392369,1716040254437,-151.0,0.00016712,2]
[327392371,1716040254446,-151.0,0.00016712,2]
[327392373,1716040254457,-500.0,0.00016712,2]
[327392375,1716040254466,-500.0,0.00016712,2]
[327392377,1716040254475,-500.0,0.00016712,2]
[327392380,1716040254488,-500.0,0.00016712,2]
[327392381,1716040254497,-200.0,0.00016712,2]
[327392383,1716040254507,-200.0,0.00016712,2]
[327392386,1716040254517,-500.0,0.00016712,2]
[327392387,1716040254526,-500.0,0.00016712,2]
[327392389,1716040254536,-500.0,0.00016712,2]
[327392391,1716040254546,-502.69813627,0.00016712,2]
[327392393,1716040254555,-617.672413,0.00016712,2]
[327392395,1716040254566,-617.672413,0.00016712,2]
[327392397,1716040254575,-617.672413,0.00016712,2]
[327392399,1716040254585,-617.672413,0.00016712,2]
[327392401,1716040254595,-500.0,0.00016712,2]
[327392403,1716040254604,-500.0,0.00016712,2]
[327392405,1716040254614,-500.0,0.00016712,2]
[327392407,1716040254623,-1000.862647,0.00016712,2]
[327392410,1716040254633,-500.0,0.00016712,2]
[327392411,1716040254643,-1000.862647,0.00016712,2]
[327392413,1716040254652,-503.53075534,0.00016712,2]
[327392415,1716040254661,-1000.862647,0.00016712,2]
[327392417,1716040254671,-1000.862647,0.00016712,2]
[327392419,1716040254680,-500.0,0.00016712,2]
[327392421,1716040254690,-979.03,0.00016712,2]
[327392423,1716040254699,-500.0,0.00016712,2]
[327392425,1716040254708,-500.0,0.00016712,2]
[327392427,1716040254718,-585.23717394,0.00016712,2]
[327392429,1716040254728,-500.0,0.00016712,2]
[327392431,1716040254738,-500.0,0.00016712,2]
[327392433,1716040254747,-500.0,0.00016712,2]
[327392435,1716040254756,-958.48,0.00016712,2]
[327392437,1716040254766,-333.715929,0.00016712,2]
[327392439,1716040254775,-333.715929,0.00016712,2]
[327392441,1716040254784,-568.29,0.00016712,2]
[327392443,1716040254793,-523.23,0.00016712,2]
[327392445,1716040254803,-539.26,0.00016712,2]
[327392447,1716040254812,-500.0,0.00016712,2]
[327392449,1716040254822,-333.715929,0.00016712,2]
[327392451,1716040254831,-333.715929,0.00016712,2]
[327392453,1716040254840,-3715.45,0.00016712,2]
[327392455,1716040254849,-500.0,0.00016712,2]
[327392457,1716040254859,-500.0,0.00016712,2]
[327392459,1716040254872,-500.0,0.00016712,2]
[327392461,1716040254881,-500.0,0.00016712,2]
[327392462,1716040254890,-500.0,0.00016712,2]
[327392464,1716040254900,-3313.41,0.00016712,2]
[327392466,1716040254910,-502.23,0.00016712,2]
[327392468,1716040254919,-502.56664578,0.00016712,2]
[327392478,1716040255003,-500.0,0.00016712,2]
[327392480,1716040255013,-587.2,0.00016712,2]
[327392482,1716040255022,-500.0,0.00016712,2]
[327392484,1716040255032,-155.88272,0.00016712,2]
[327392486,1716040255042,-500.0,0.00016712,2]
[327392488,1716040255052,-500.0,0.00016712,2]
[327392490,1716040255061,-155.88272,0.00016712,2]
[327392492,1716040255070,-500.0,0.00016712,2]
[327392494,1716040255079,-500.0,0.00016712,2]
[327392496,1716040255088,-501.92515826,0.00016712,2]
[327392498,1716040255098,-155.88272,0.00016712,2]
[327392500,1716040255107,-1201.78,0.00016712,2]
[327392501,1716040255116,-155.88272,0.00016712,2]
[327392503,1716040255125,-822.0,0.00016712,2]
[327392505,1716040255135,-549.11791798,0.00016712,2]
[327392507,1716040255144,-188.80923423,0.00016712,2]
[327392509,1716040255154,-500.0,0.00016712,2]
[327392511,1716040255163,-500.0,0.00016712,2]
[327392513,1716040255172,-158.339831,0.00016712,2]
[327392515,1716040255182,-500.0,0.00016712,2]
[327392517,1716040255192,-500.0,0.00016712,2]
[327392519,1716040255201,-500.0,0.00016712,2]
[327392521,1716040255210,-500.0,0.00016712,2]
[327392523,1716040255219,-500.0,0.00016712,2]
[327392525,1716040255228,-202.041419,0.00016712,2]
[327392527,1716040255238,-500.0,0.00016712,2]
[327392529,1716040255247,-202.041419,0.00016712,2]
[327392531,1716040255256,-500.0,0.00016712,2]
[327392533,1716040255266,-151.0,0.00016712,2]
[327392535,1716040255275,-151.0,0.00016712,2]
[327392537,1716040255284,-604.77,0.00016712,2]
[327392539,1716040255293,-500.0,0.00016712,2]
[327392541,1716040255302,-756.27,0.00016712,2]
[327392543,1716040255312,-202.041419,0.00016712,2]
[327392545,1716040255321,-202.041419,0.00016712,2]
[327392547,1716040255330,-500.0,0.00016712,2]
[327392549,1716040255339,-1820.54,0.00016712,2]
[327392551,1716040255349,-651.4,0.00016712,2]
[327392553,1716040255358,-500.0,0.00016712,2]
[327392554,1716040255368,-500.0,0.00016712,2]
[327392556,1716040255377,-500.0,0.00016712,2]
[327392558,1716040255387,-1437.387251,0.00016712,2]
[327392560,1716040255396,-1437.387251,0.00016712,2]
[327392562,1716040255406,-1437.387251,0.00016712,2]
[327392564,1716040255415,-1437.387251,0.00016712,2]
[327392566,1716040255424,-500.0,0.00016712,2]
[327392568,1716040255434,-166.571989,0.00016712,2]
[327392570,1716040255443,-166.571989,0.00016712,2]
[327392572,1716040255453,-9028.34,0.00016712,2]
[327392574,1716040255463,-151.0,0.00016712,2]
[327392576,1716040255473,-295.624518,0.00016712,2]
[327392578,1716040255484,-166.571989,0.00016712,2]
[327392580,1716040255493,-729.92,0.00016712,2]
[327392582,1716040255502,-166.571989,0.00016712,2]
[327392584,1716040255511,-502.67621234,0.00016712,2]
[327392586,1716040255520,-500.0,0.00016712,2]
[327392588,1716040255529,-500.0,0.00016712,2]
[327392590,1716040255538,-500.0,0.00016712,2]
[327392592,1716040255547,-500.0,0.00016712,2]
[327392594,1716040255556,-500.0,0.00016712,2]
[327392596,1716040255566,-351.65509789,0.00016712,2]
[327392598,1716040255575,-500.0,0.00016712,2]
[327392600,1716040255584,-500.0,0.00016712,2]
[327392602,1716040255594,-500.0,0.00016712,2]
[327392604,1716040255603,-500.0,0.00016712,2]
[327392606,1716040255613,-500.0,0.00016712,2]
[327392607,1716040255623,-500.0,0.00016712,2]
[327392609,1716040255632,-857.670306,0.00016712,2]
[327392611,1716040255641,-500.0,0.00016712,2]
[327392613,1716040255650,-857.670306,0.00016712,2]
[327392615,1716040255659,-500.0,0.00016712,2]
[327392617,1716040255668,-857.670306,0.00016712,2]
[327392619,1716040255677,-857.670306,0.00016712,2]
[327392621,1716040255686,-500.0,0.00016712,2]
[327392623,1716040255695,-151.0,0.00016712,2]
[327392625,1716040255704,-151.0,0.00016712,2]
[327392627,1716040255713,-500.0,0.00016712,2]
[327392629,1716040255723,-500.0,0.00016712,2]
[327392631,1716040255733,-500.0,0.00016712,2]
[327392633,1716040255743,-500.0,0.00016712,2]
[327392635,1716040255752,-913.29,0.00016712,2]
[327392636,1716040255761,-151.0,0.00016712,2]
[327392638,1716040255770,-151.0,0.00016712,2]
[327392640,1716040255779,-500.0,0.00016712,2]
[327392642,1716040255788,-502.03716847,0.00016712,2]
[327392644,1716040255798,-800.14,0.00016712,2]
[327392646,1716040255807,-500.0,0.00016712,2]
[327392648,1716040255816,-500.0,0.00016712,2]
[327392650,1716040255825,-1236.22753,0.00016712,2]
[327392652,1716040255834,-1236.22753,0.00016712,2]
[327392654,1716040255843,-504.4005036,0.00016712,2]
[327392656,1716040255852,-500.0,0.00016712,2]
[327392658,1716040255865,-1236.22753,0.00016712,2]
[327392660,1716040255875,-500.0,0.00016712,2]
[327392662,1716040255884,-1236.22753,0.00016712,2]
[327392664,1716040255893,-500.0,0.00016712,2]
[327392666,1716040255903,-500.0,0.00016712,2]
[327392667,1716040255912,-500.0,0.00016712,2]
[327392669,1716040255923,-536.73449448,0.00016712,2]
[327392671,1716040255932,-500.0,0.00016712,2]
[327392673,1716040255942,-500.0,0.00016712,2]
[327392675,1716040255951,-500.0,0.00016712,2]
[327392677,1716040255960,-500.0,0.00016712,2]
[327392679,1716040255968,-500.0,0.00016712,2]
[327392681,1716040255978,-910.04,0.00016712,2]
[327392683,1716040255987,-500.0,0.00016712,2]
[327392685,1716040255996,-500.0,0.00016712,2]
[327392687,1716040256005,-158.17383,0.00016712,2]
[327392689,1716040256014,-500.90565048,0.00016712,2]
[327392691,1716040256023,-158.17383,0.00016712,2]
[327392692,1716040256032,-500.0,0.00016712,2]
[327392694,1716040256042,-158.17383,0.00016712,2]
[327392696,1716040256051,-158.17383,0.00016712,2]
[327392698,1716040256060,-500.0,0.00016712,2]
[327392700,1716040256069,-500.0,0.00016712,2]
[327392702,1716040256079,-500.0,0.00016712,2]
[327392704,1716040256088,-151.0,0.00016712,2]
[327392706,1716040256097,-500.0,0.00016712,2]
[327392708,1716040256107,-143.82871353,0.00016712,2]
[327396419,1716041206127,-158.51655577,8.532e-05,2]
[327396420,1716041206149,-996.70358263,8.532e-05,2]
[327396421,1716041339536,2020.618,0.00023,30]
[327396468,1716041432813,-207.34451471,7.498e-05,2]
[327396469,1716041432823,-719.96474571,7.498e-05,2]
[327396470,1716041432832,-1039.92663018,7.498e-05,2]
[327396471,1716041432844,-1594.39994829,7.498e-05,2]
[327396473,1716041432853,-10508.75516608,7.498e-05,2]
[327396475,1716041432863,-1094.99548197,7.498e-05,2]
[327396477,1716041432872,-9559.52730965,7.498e-05,2]
[327396479,1716041432882,-285.03925166,7.499e-05,2]
[327396481,1716041432891,-3062.48237355,7.499e-05,2]
[327396483,1716041432900,-410.45768134,7.499e-05,2]
[327396485,1716041432910,-154.81422293,7.499e-05,2]
[327396487,1716041432919,-492.86440031,7.499e-05,2]
[327396489,1716041432929,-1885.45852368,7.499e-05,2]
[327396490,1716041432939,-1403.26792763,7.499e-05,2]
[327396491,1716041432948,-1043.25678867,7.5e-05,2]
[327396492,1716041432957,-675.83241571,7.5e-05,2]
[327396493,1716041432966,-154.81422293,7.5e-05,2]
[327396494,1716041432975,-1496.37630434,7.5e-05,2]
[327396495,1716041432985,-658.15339953,7.5e-05,2]
[327396496,1716041432994,-2597.41542727,7.501e-05,2]
[327396497,1716041433004,-452.52831116,7.501e-05,2]
[327396498,1716041433015,-2114.46454517,7.501e-05,2]
[327396499,1716041433024,-154.81422293,7.501e-05,2]
[327396500,1716041433035,-261.10136921,7.502e-05,2]
[327396501,1716041433044,-158.51655577,7.502e-05,2]
[327396502,1716041433053,-26207.82489209,7.502e-05,2]
[327396503,1716041433064,-1338.92794901,7.503e-05,2]
[327396504,1716041433073,-316.15927372,7.503e-05,2]
[327396505,1716041433083,-330.96158487,7.503e-05,2]
[327396506,1716041433092,-1350.43959976,7.503e-05,2]
[327396507,1716041433102,-690.19911136,7.503e-05,2]
[327396508,1716041433111,-2678.78839717,7.503e-05,2]
[327396509,1716041433121,-835.50091713,7.503e-05,2]
[327396510,1716041433130,-16083.00727887,7.503e-05,2]
[327396991,1716041444046,-1581.42130168,7.497e-05,2]
[327396995,1716041444055,-11053.04296534,7.497e-05,2]
[327396998,1716041444065,-513.4844886,7.497e-05,2]
[327397001,1716041444075,-154.81422293,7.497e-05,2]
[327397007,1716041444084,-154.81422293,7.497e-05,2]
[327397011,1716041444093,-909.64823199,7.497e-05,2]
[327397015,1716041444102,-835.50091713,7.502e-05,2]
[327397020,1716041444112,-43319.55857556,7.503e-05,2]
[327397025,1716041444121,-1897.58698072,7.504e-05,2]
[327397029,1716041444130,-818.31964662,7.504e-05,2]
[327397032,1716041444139,-522.61290648,7.504e-05,2]
[327397036,1716041444148,-194.45514723,7.504e-05,2]
[327397040,1716041444157,-7894.33531896,7.504e-05,2]
[327397044,1716041444167,-845.77422263,7.507e-05,2]
[327397048,1716041444177,-1238.79893795,7.595e-05,2]
[327397051,1716041444186,-24900.0,7.604e-05,2]
[327397054,1716041444196,-734.10889749,8.629e-05,2]
[327397057,1716041444205,-309.62844586,8.755e-05,2]
[327397060,1716041444215,-1162.93436242,9.795e-05,2]
[327397063,1716041444226,-1238.79893794,9.806e-05,2]
[327397066,1716041444237,-535.82320004,9.889e-05,2]
[327397069,1716041444247,-157.33349204,9.889e-05,2]
[327397072,1716041444257,-189.5809831,9.895e-05,2]
[327397074,1716041444266,-285.23336999,9.975e-05,2]
[327397077,1716041444278,-155.02616072,9.975e-05,2]
[327397080,1716041444288,-155.23068534,9.975e-05,2]
[327397082,1716041444302,-156.08606564,9.975e-05,2]
[327397085,1716041444311,-215.16633328,9.975e-05,2]
[327397088,1716041444322,-220.92019024,9.975e-05,2]
[327397090,1716041444332,-305.62526915,9.975e-05,2]
[327397092,1716041444343,-281.05958494,9.983e-05,2]
[327397094,1716041444352,-154.86786605,9.989e-05,2]
[327397096,1716041444361,-703.94813937,9.989e-05,2]
[327397098,1716041444371,-155.27125966,9.989e-05,2]
[327397100,1716041444382,-164.48430608,9.989e-05,2]
[327397102,1716041444392,-345.90654344,9.989e-05,2]
[327397104,1716041444401,-235.39080989,9.989e-05,2]
[327397106,1716041444410,-154.88076478,9.99e-05,2]
[327397108,1716041444419,-154.8647476,9.992e-05,2]
[327397110,1716041444430,-309.5666191,9.994e-05,2]
[327397112,1716041444439,-173.8658638,9.996e-05,2]
[327397114,1716041444448,-309.45841455,9.996e-05,2]
[327397116,1716041444458,-276.77726164,9.997e-05,2]
[327397118,1716041444467,-288.14213143,9.998e-05,2]
[327397119,1716041444479,-1417.01008988,9.998e-05,2]
[327397121,1716041444488,-18039.97434303,0.0001,2]
[327397123,1716041444497,-1273.31614795,0.0001,2]
[327397125,1716041444507,-771.85111591,0.0001,2]
[327397127,1716041444517,-1136.28761432,0.0001,2]
[327397129,1716041444528,-1037.04,0.00010959,2]
[327397131,1716041444538,-942.52,0.00010959,2]
[327397133,1716041444547,-785.43,0.00010959,2]
[327397135,1716041444556,-654.53,0.00010959,2]
[327397137,1716041444566,-545.44,0.00010959,2]
[327397139,1716041444576,-1238.79893794,0.00011917,2]
[327397141,1716041444586,-4074.25845551,0.000129,2]
[327397143,1716041444595,-1439.7176633,0.00013699,2]
[327397144,1716041444604,-1520.566931,0.00013699,2]
[327397146,1716041444614,-283.58690319,0.000137,2]
[327397147,1716041444623,-1084.51096583,0.000138,2]
[327397148,1716041444632,-920.93404353,0.00014,2]
[327397149,1716041444641,-1238.79893794,0.00014127,2]
[327397150,1716041444650,-4074.25845548,0.00014159,2]
[327397151,1716041444659,-3699.56949019,0.00015,2]
[327397152,1716041444668,-2400.65057528,0.00015,2]
[327397153,1716041444677,-1149.07076386,0.00015,2]
[327397154,1716041444686,-2107.5414282,0.00015,2]
[327397155,1716041444695,-942.53705457,0.00015,2]
[327397156,1716041444709,-80000.0,0.00015,2]
[327397157,1716041444724,-189.0391359,0.00015,2]
[327397158,1716041444739,-491.35425183,0.00015,2]
[327397159,1716041444750,-1682.27955662,0.00015,2]
[327397160,1716041444764,-4579.8151335,0.00015998,2]
[327397161,1716041444779,-7967.64444353,0.00016,2]
[327397163,1716041444794,-3095.46719057,0.00016,2]
[327397164,1716041444807,-262.0,0.00016035,2]
[327397165,1716041444822,-37924.56489245,0.00016138,2]
[327397168,1716041444841,-5506.56949084,0.00016138,2]
[327397170,1716041444854,-544.2,0.00016317,2]
[327397172,1716041444867,-544.2,0.00016317,3]
[327397175,1716041444881,-150.0,0.00016317,2]
[327397177,1716041444895,-150.0,0.00016317,3]
[327397180,1716041444907,-3131.125128,0.00016336,2]
[327397182,1716041444919,-1238.79893794,0.00016338,2]
[327397184,1716041444931,-187.74059143,0.00016436,2]
[327397187,1716041444945,-167.51291413,0.00016436,2]
[327397189,1716041444958,-297.04672897,0.00016436,2]
[327397191,1716041444972,-605.35420976,0.00016437,2]
[327397194,1716041444986,-500.0,0.00016438,2]
[327397196,1716041445001,-503.67782548,0.00016438,2]
[327397199,1716041445012,-395.10991625,0.00016438,2]
[327397201,1716041445024,-500.0,0.00016438,2]
[327397203,1716041445035,-500.0,0.00016438,2]
[327397205,1716041445048,-234.00727882,0.00016438,2]
[327397209,1716041445067,-285.32730899,0.00016438,2]
[327397211,1716041445078,-500.0,0.00016438,2]
[327397213,1716041445089,-500.0,0.00016438,2]
[327397215,1716041445101,-38.57668283,0.00016438,2]
[327397218,1716041445117,-461.42331717,0.00016438,2]
[327397220,1716041445129,-500.0,0.00016438,2]
[327397222,1716041445139,-500.0,0.00016438,2]
[327397224,1716041445152,-500.0,0.00016438,2]
[327397227,1716041445164,-500.0,0.00016438,2]
[327397229,1716041445176,-547.46510442,0.00016438,2]
[327397231,1716041445189,-500.0,0.00016438,2]
[327397233,1716041445201,-500.0,0.00016438,2]
[327397236,1716041445213,-500.0,0.00016438,2]
[327397238,1716041445225,-500.0,0.00016438,2]
[327397240,1716041445237,-500.0,0.00016438,2]
[327397243,1716041445249,-500.0,0.00016438,2]
[327397245,1716041445260,-500.0,0.00016438,2]
[327397247,1716041445271,-478.12044783,0.00016438,2]
[327397250,1716041445287,-21.87955217,0.00016438,2]
[327397252,1716041445299,-500.0,0.00016438,2]
[327397254,1716041445314,-500.0,0.00016438,2]
[327397256,1716041445326,-271.28214135,0.00016438,2]
[327397259,1716041445338,-500.0,0.00016438,2]
[327397261,1716041445351,-500.0,0.00016438,2]
[327397263,1716041445364,-500.0,0.00016438,2]
[327397265,1716041445375,-500.0,0.00016438,2]
[327397268,1716041445390,-500.0,0.00016438,2]
[327397270,1716041445402,-244.84223812,0.00016438,2]
[327397307,1716041445748,-255.15776188,0.00016438,2]
[327397309,1716041445759,-500.0,0.00016438,2]
[327397311,1716041445769,-500.0,0.00016438,2]
[327397313,1716041445779,-629.81101403,0.00016438,2]
[327397315,1716041445788,-500.0,0.00016438,2]
[327397317,1716041445797,-500.0,0.00016438,2]
[327397319,1716041445807,-500.0,0.00016438,2]
[327397321,1716041445817,-500.0,0.00016438,2]
[327397323,1716041445827,-500.0,0.00016438,2]
[327397325,1716041445836,-500.0,0.00016438,2]
[327397327,1716041445846,-500.0,0.00016438,2]
[327397329,1716041445856,-500.0,0.00016438,2]
[327397331,1716041445865,-500.0,0.00016438,2]
[327397333,1716041445875,-500.0,0.00016438,2]
[327397335,1716041445884,-500.0,0.00016438,2]
[327397337,1716041445893,-500.0,0.00016438,2]
[327397339,1716041445903,-500.0,0.00016438,2]
[327397341,1716041445913,-500.0,0.00016438,2]
[327397343,1716041445923,-500.0,0.00016438,2]
[327397345,1716041445932,-500.0,0.00016438,2]
[327397347,1716041445942,-500.0,0.00016438,2]
[327397349,1716041445951,-500.0,0.00016438,2]
[327397351,1716041445961,-500.0,0.00016438,2]
[327397353,1716041445970,-500.0,0.00016438,2]
[327397355,1716041445979,-500.0,0.00016438,2]
[327397357,1716041445989,-500.0,0.00016438,2]
[327397359,1716041445998,-500.0,0.00016438,2]
[327397361,1716041446007,-500.0,0.00016438,2]
[327397363,1716041446017,-500.0,0.00016438,2]
[327397365,1716041446027,-500.0,0.00016438,2]
[327397367,1716041446036,-500.0,0.00016438,2]
[327397369,1716041446045,-331.04583687,0.00016438,2]
[327397371,1716041446055,-500.0,0.00016438,2]
[327397374,1716041446065,-500.0,0.00016438,2]
[327397376,1716041446074,-500.0,0.00016438,2]
[327397380,1716041446083,-348.5878927,0.00016438,2]
[327397383,1716041446093,-376.1029477,0.00016438,2]
[327397384,1716041446103,-555.0,0.00016438,2]
[327397387,1716041446112,-500.0,0.00016438,2]
[327397390,1716041446121,-500.0,0.00016438,2]
[327397394,1716041446130,-500.0,0.00016438,2]
[327397397,1716041446140,-500.0,0.00016438,2]
[327397399,1716041446150,-500.0,0.00016438,2]